bitfinex/quotes_BTCUSD_20260307
["timestamp","ask_amount","ask_price","bid_price","bid_amount"]
[1772892343719,0.07371804,67826.0,67817.0,0.01362987]
[1772892346354,0.07371804,67826.0,67817.0,0.08735764]
[1772892346579,0.07371453,67830.0,67820.0,0.01342987]
[1772892346793,0.10941019,67834.0,67821.0,0.01342987]
[1772892346976,0.10940968,67834.0,67823.0,0.01342987]
[1772892347181,0.00148,67833.0,67823.0,0.01342987]
[1772892347385,0.10940968,67834.0,67823.0,0.01342987]
[1772892347695,0.00148,67832.0,67823.0,0.01342987]
[1772892347900,0.07519217,67832.0,67823.0,0.01342987]
[1772892349613,0.07519217,67832.0,67820.0,0.00148]
[1772892349751,0.07519217,67832.0,67821.0,0.01342987]
[1772892350158,0.07519217,67832.0,67821.0,0.08715318]
[1772892350411,0.07519217,67832.0,67821.0,0.07372331]
[1772892351670,0.00148,67832.0,67822.0,0.02180122]
[1772892352042,0.07519209,67832.0,67822.0,0.02180122]
[1772892352241,0.07519209,67832.0,67822.0,0.0955234]
[1772892352646,0.07519209,67832.0,67821.0,0.01]
[1772892353534,0.07519209,67832.0,67821.0,0.0102]
[1772892353786,0.12294349,67832.0,67821.0,0.0102]
[1772892354284,0.0477514,67831.0,67821.0,0.0102]
[1772892354863,0.07519209,67832.0,67817.0,0.0002]
[1772892354864,0.0201171,67830.0,67817.0,0.0002]
[1772892355065,0.04772933,67827.0,67817.0,0.0002]
[1772892355291,0.04772933,67827.0,67812.0,0.0002]
[1772892355292,0.04772933,67823.0,67809.0,0.0002]
[1772892355489,0.0201171,67820.0,67809.0,0.0002]
[1772892355805,0.04772933,67817.0,67809.0,0.0002]
[1772892355963,0.04772933,67815.0,67809.0,0.0002]
[1772892356170,0.00148,67816.0,67799.0,0.00148]
[1772892356171,0.0201171,67814.0,67799.0,0.00148]
[1772892356401,0.0477514,67810.0,67798.0,0.0001725]
[1772892356734,0.0201171,67805.0,67789.0,0.0016525]
[1772892357013,0.0477514,67800.0,67789.0,0.0001725]
[1772892357165,0.0477514,67798.0,67789.0,0.0001725]
[1772892357357,0.00148,67799.0,67781.0,0.00575]
[1772892357358,0.0477514,67796.0,67781.0,0.00575]
[1772892357561,0.0477514,67794.0,67781.0,0.00575]
[1772892357763,0.0477514,67794.0,67781.0,0.08099652]
[1772892357993,0.0477514,67798.0,67781.0,0.08099652]
[1772892358213,0.00148,67798.0,67783.0,0.0737648]
[1772892358449,0.07373785,67808.0,67784.0,0.02180122]
[1772892358651,0.00148,67807.0,67784.0,0.02180122]
[1772892358851,0.00148,67808.0,67784.0,0.02180122]
[1772892359203,0.11091736,67809.0,67784.0,0.02180122]
[1772892359350,0.11091736,67809.0,67785.0,0.02180122]
[1772892359538,0.0477514,67806.0,67786.0,0.00148]
[1772892359877,0.11091736,67809.0,67784.0,0.01]
[1772892360038,0.11091736,67809.0,67785.0,0.02328122]
[1772892360236,0.07521806,67808.0,67786.0,0.07376154]
[1772892360576,0.00148,67807.0,67786.0,0.07376154]
[1772892360723,0.0477514,67804.0,67786.0,0.07376154]
[1772892360922,0.0477514,67803.0,67787.0,0.01987599]
[1772892361770,0.0492314,67807.0,67787.0,0.01987599]
[1772892362444,0.07521978,67806.0,67789.0,0.02135863]
[1772892364347,0.12297118,67806.0,67790.0,0.07375719]
[1772892364548,0.12297118,67806.0,67791.0,0.00148]
[1772892365152,0.00012043,67810.0,67792.0,0.02135863]
[1772892365357,0.00148,67809.0,67792.0,0.02135863]
[1772892366009,0.0477514,67808.0,67787.0,0.0837604]
[1772892366336,0.00148,67809.0,67787.0,0.01]
[1772892366337,0.07374413,67802.0,67787.0,0.01]
[1772892366528,0.0477514,67800.0,67787.0,0.01]
[1772892366831,0.00148,67801.0,67787.0,0.01]
[1772892367028,0.00148,67801.0,67787.0,0.08375941]
[1772892367328,0.00148,67801.0,67787.0,0.011]
[1772892367504,0.00148,67801.0,67787.0,0.01]
[1772892367505,0.0492314,67801.0,67787.0,0.01]
[1772892368133,0.00148,67800.0,67787.0,0.08376038]
[1772892368324,0.0477514,67799.0,67787.0,0.01]
[1772892368527,0.0477514,67796.0,67787.0,0.01]
[1772892368827,0.0477514,67794.0,67787.0,0.01]
[1772892368981,0.07522848,67798.0,67784.0,0.01]
[1772892368982,0.0477514,67793.0,67784.0,0.01]
[1772892369181,0.02181774,67791.0,67784.0,0.01]
[1772892369450,0.00148,67794.0,67784.0,0.01]
[1772892370005,0.0492314,67794.0,67784.0,0.01]
[1772892371012,0.07375392,67793.0,67784.0,0.01]
[1772892373080,0.00148,67794.0,67784.0,0.08376339]
[1772892373293,0.07523349,67794.0,67784.0,0.08376333]
[1772892373640,0.12150111,67797.0,67784.0,0.08376333]
[1772892373840,0.07374971,67797.0,67784.0,0.08376303]
[1772892374041,0.07374971,67797.0,67785.0,0.02135863]
[1772892374692,0.0477514,67796.0,67784.0,0.01]
[1772892374884,0.0477514,67794.0,67784.0,0.01]
[1772892375277,0.07375392,67793.0,67784.0,0.01]
[1772892375859,0.07375392,67793.0,67784.0,0.011]
[1772892376314,0.07375392,67793.0,67784.0,0.01]
[1772892382115,0.07374967,67797.0,67784.0,0.0102]
[1772892382318,0.0477514,67795.0,67784.0,0.0102]
[1772892382824,0.06956914,67795.0,67784.0,0.0102]
[1772892382980,0.0477514,67794.0,67784.0,0.0102]
[1772892384330,0.0477514,67792.0,67784.0,0.0102]
[1772892386458,0.1215069,67792.0,67784.0,0.0102]
[1772892387220,0.1215075,67792.0,67784.0,0.0102]
[1772892389802,0.07375125,67796.0,67784.0,0.0102]
[1772892389975,0.07375125,67796.0,67785.0,0.02135863]
[1772892391443,0.00022001,67793.0,67785.0,0.02135863]
[1772892392162,0.00148,67798.0,67785.0,0.07376261]
[1772892392445,0.12171796,67800.0,67786.0,0.02171574]
[1772892392787,0.12171796,67800.0,67787.0,0.00148]
[1772892393014,0.0477514,67799.0,67787.0,0.00148]
[1772892393153,0.0477514,67799.0,67786.0,0.00148]
[1772892393354,0.07374848,67798.0,67786.0,0.07524073]
[1772892393731,0.07396849,67800.0,67787.0,0.00148]
[1772892394134,0.07396849,67800.0,67786.0,0.07376073]
[1772892394348,0.07396849,67800.0,67788.0,0.00148]
[1772892394536,0.07396849,67800.0,67786.0,0.07376073]
[1772892394734,0.07396849,67800.0,67787.0,0.00148]
[1772892395231,0.07396849,67800.0,67788.0,0.00148]
[1772892395526,0.07396849,67800.0,67789.0,0.07375827]
[1772892396719,0.0477514,67799.0,67789.0,0.07375827]
[1772892399067,0.12149984,67799.0,67788.0,0.00148]
[1772892399706,0.0477514,67799.0,67788.0,0.07523883]
[1772892401306,0.0477514,67799.0,67788.0,0.00148]
[1772892402140,0.12149882,67799.0,67788.0,0.0752391]
[1772892402377,0.0477514,67799.0,67788.0,0.0752391]
[1772892403279,0.0477514,67799.0,67788.0,0.07523879]
[1772892404482,0.12149891,67799.0,67788.0,0.07523879]
[1772892404694,0.00170001,67800.0,67788.0,0.07523879]
[1772892404890,0.07544635,67800.0,67788.0,0.07523879]
[1772892405133,0.00170001,67800.0,67788.0,0.07523879]
[1772892405308,0.07544671,67800.0,67788.0,0.07523879]
[1772892405509,0.07544671,67800.0,67788.0,0.07523909]
[1772892406124,0.07529671,67800.0,67788.0,0.07523909]
[1772892407392,0.07381671,67800.0,67788.0,0.07523909]
[1772892407762,7.001e-05,67800.0,67788.0,0.07523909]
[1772892408732,7.001e-05,67800.0,67788.0,0.07523904]
[1772892409748,0.00155001,67800.0,67788.0,0.07523904]
[1772892412143,0.0477514,67799.0,67788.0,0.07523904]
[1772892413753,7.001e-05,67800.0,67788.0,0.07523904]
[1772892416731,0.04782141,67800.0,67788.0,0.07523904]
[1772892417683,0.04782141,67800.0,67788.0,0.07543904]
[1772892420846,0.02026114,67795.0,67786.0,0.00148]
[1772892421124,0.0477514,67793.0,67786.0,0.00148]
[1772892422044,0.0477514,67793.0,67785.0,0.07405968]
[1772892422216,0.00148,67799.0,67786.0,0.00050955]
[1772892422598,0.00148,67799.0,67785.0,0.0955724]
[1772892423045,0.0492314,67799.0,67785.0,0.0955724]
[1772892424488,0.0477514,67799.0,67785.0,0.0955724]
[1772892426065,0.0477514,67799.0,67786.0,0.0002]
[1772892430496,0.07374787,67799.0,67786.0,0.0002]
[1772892430645,0.0476198,67798.0,67786.0,0.0002]
[1772892431674,0.0476198,67798.0,67787.0,0.00148]
[1772892432071,0.0476198,67798.0,67797.0,0.00015]
[1772892432245,0.0476198,67798.0,67788.0,0.00148]
[1772892433048,0.0476198,67798.0,67786.0,0.0002]
[1772892433263,0.0476198,67798.0,67787.0,0.00148]
[1772892433667,0.0476198,67798.0,67788.0,0.00148]
[1772892434106,0.0002495,67819.0,67786.0,0.0002]
[1772892434107,0.00022001,67808.0,67787.0,0.02003272]
[1772892434259,0.00012043,67810.0,67790.0,0.02003272]
[1772892434673,0.00012043,67810.0,67792.0,0.02003272]
[1772892434875,0.04751056,67807.0,67788.0,0.07375836]
[1772892435078,0.01987229,67805.0,67788.0,0.07375836]
[1772892435315,0.04751056,67804.0,67789.0,0.00148]
[1772892435725,0.04751056,67804.0,67792.0,0.001]
[1772892435938,0.04751056,67804.0,67790.0,0.00148]
[1772892436232,0.04751056,67809.0,67790.0,0.02151272]
[1772892436734,0.04746257,67807.0,67791.0,0.0737561]
[1772892437330,0.04746257,67806.0,67791.0,0.0737561]
[1772892439147,0.04746257,67806.0,67791.0,0.09378882]
[1772892440663,0.12120291,67806.0,67791.0,0.09378882]
[1772892441276,0.04746257,67806.0,67791.0,0.09378882]
[1772892443590,0.00022001,67807.0,67792.0,0.02003272]
[1772892444100,0.00012043,67810.0,67792.0,0.02003272]
[1772892445183,0.00012043,67810.0,67794.0,0.02003272]
[1772892445387,0.0472576,67809.0,67794.0,0.02003272]
[1772892446904,0.0472576,67809.0,67794.0,0.03003272]
[1772892447428,0.0472576,67809.0,67795.0,0.07375175]
[1772892447664,0.0472576,67809.0,67796.0,0.00148]
[1772892449214,0.00034044,67810.0,67796.0,0.02151272]
[1772892450514,0.04710745,67809.0,67796.0,0.07522957]
[1772892451871,0.04710745,67809.0,67796.0,0.08522957]
[1772892453468,0.00034044,67810.0,67796.0,0.10561875]
[1772892453661,0.07373652,67809.0,67796.0,0.08522957]
[1772892453981,0.07373652,67809.0,67790.0,0.00148]
[1772892453982,0.02110677,67803.0,67790.0,0.00148]
[1772892454180,0.04705853,67800.0,67790.0,0.00148]
[1772892454388,0.02110677,67798.0,67790.0,0.00148]
[1772892454680,0.0477514,67797.0,67790.0,0.00148]
[1772892455275,0.02110677,67795.0,67785.0,0.0002975]
[1772892455479,0.0477514,67793.0,67785.0,0.0002975]
[1772892455927,0.0477514,67793.0,67785.0,0.0017775]
[1772892456310,0.02110677,67792.0,67791.0,0.0002]
[1772892456541,0.06885817,67792.0,67791.0,0.0002]
[1772892458488,0.06885817,67792.0,67791.0,0.0102]
[1772892459539,0.02110677,67792.0,67786.0,0.00148]
[1772892459746,0.0477514,67791.0,67785.0,0.0002975]
[1772892460153,0.0477514,67791.0,67783.0,0.00148]
[1772892460354,0.02110677,67790.0,67783.0,0.00148]
[1772892460551,0.0477514,67789.0,67783.0,0.00148]
[1772892461207,0.0477514,67789.0,67785.0,0.01]
[1772892461611,0.07375179,67795.0,67785.0,0.01]
[1772892461808,0.0477514,67794.0,67785.0,0.08376212]
[1772892461989,0.0477514,67794.0,67785.0,0.08416317]
[1772892463557,0.12297903,67799.0,67785.0,0.08416317]
[1772892463774,0.0477514,67798.0,67785.0,0.08416317]
[1772892465141,0.0477514,67798.0,67785.0,0.08436317]
[1772892466201,0.07373978,67806.0,67786.0,0.02038918]
[1772892466341,0.0477514,67805.0,67786.0,0.02038918]
[1772892466538,0.0492314,67805.0,67786.0,0.02038918]
[1772892466964,0.0477514,67805.0,67786.0,0.02038918]
[1772892467344,0.0477514,67804.0,67786.0,0.02038918]
[1772892467549,0.02110677,67802.0,67785.0,0.08436317]
[1772892467748,0.02110677,67801.0,67785.0,0.08436317]
[1772892467963,0.04745886,67800.0,67785.0,0.08436317]
[1772892468166,0.07374196,67804.0,67785.0,0.08436317]
[1772892468372,0.0477514,67803.0,67785.0,0.08436317]
[1772892468569,0.0477514,67801.0,67785.0,0.08436317]
[1772892468781,0.0477514,67799.0,67786.0,0.00148]
[1772892469417,0.0477514,67799.0,67787.0,0.00148]
[1772892474520,0.0477514,67799.0,67788.0,0.07375936]
[1772892475059,0.02110677,67798.0,67787.0,0.0002]
[1772892475262,0.0477514,67797.0,67787.0,0.00168]
[1772892475819,0.0477514,67796.0,67787.0,0.00168]
[1772892476210,0.0477514,67796.0,67788.0,0.00148]
[1772892476512,0.07375175,67795.0,67788.0,0.00148]
[1772892476714,0.0477514,67794.0,67788.0,0.00148]
[1772892480464,0.0477514,67792.0,67782.0,0.00148]
[1772892480663,0.04784624,67792.0,67782.0,0.00148]
[1772892481018,0.04784624,67792.0,67783.0,0.00148]
[1772892482442,0.07385042,67792.0,67783.0,0.00148]
[1772892482660,0.0477514,67791.0,67783.0,0.00148]
[1772892482858,0.0477514,67791.0,67781.0,0.00595]
[1772892483178,0.07385042,67792.0,67781.0,0.00595]
[1772892483179,0.0477514,67789.0,67781.0,0.00595]
[1772892483590,0.0477514,67789.0,67778.0,0.0002]
[1772892483789,0.0477514,67787.0,67778.0,0.00168]
[1772892484023,0.0477514,67787.0,67778.0,0.0002]
[1772892484954,0.0477514,67787.0,67778.0,0.0102]
[1772892485298,0.07376083,67787.0,67772.0,0.0001217]
[1772892485504,0.07376083,67787.0,67766.0,0.0001217]
[1772892485505,0.0477514,67780.0,67766.0,0.0001217]
[1772892485663,0.0737599,67788.0,67767.0,0.01940494]
[1772892485909,0.0477514,67787.0,67767.0,0.01940494]
[1772892486705,0.0001217,67789.0,67767.0,0.01940494]
[1772892486706,0.07388004,67789.0,67769.0,0.01940494]
[1772892487108,0.11664773,67789.0,67769.0,0.01940494]
[1772892487328,0.04276769,67788.0,67769.0,0.01940494]
[1772892488595,0.11652789,67788.0,67771.0,0.01940494]
[1772892488823,0.11652789,67788.0,67773.0,0.01940494]
[1772892489022,0.11652789,67788.0,67772.0,0.00148]
[1772892489023,0.0737602,67788.0,67772.0,0.00148]
[1772892489223,0.02060929,67785.0,67769.0,0.0852596]
[1772892489438,0.04276769,67784.0,67769.0,0.0852596]
[1772892489599,0.04276769,67783.0,67769.0,0.0852596]
[1772892489803,0.04276769,67783.0,67770.0,0.00148]
[1772892490832,0.04276769,67781.0,67770.0,0.00148]
[1772892491357,0.04276769,67781.0,67770.0,0.07525876]
[1772892491510,0.07376587,67783.0,67770.0,0.0946637]
[1772892491709,0.07524587,67783.0,67770.0,0.0946637]
[1772892492167,0.11801356,67783.0,67770.0,0.0946637]
[1772892492346,0.07524587,67783.0,67770.0,0.0946637]
[1772892492514,0.04276769,67782.0,67770.0,0.0946637]
[1772892493529,0.1165345,67782.0,67770.0,0.0946637]
[1772892494934,0.11653362,67782.0,67770.0,0.1046637]
[1772892495171,0.07376593,67782.0,67771.0,0.01940494]
[1772892495327,0.00148,67785.0,67771.0,0.01940494]
[1772892495533,0.11664776,67789.0,67772.0,0.07377678]
[1772892495753,0.04276769,67788.0,67773.0,0.01940494]
[1772892496546,0.04276769,67788.0,67774.0,0.01196433]
[1772892496738,0.07388007,67789.0,67774.0,0.01196433]
[1772892496939,0.0001217,67789.0,67777.0,0.01940494]
[1772892497134,0.0001217,67789.0,67772.0,0.07377678]
[1772892497135,0.0001217,67789.0,67781.0,0.01196433]
[1772892497780,0.0001217,67789.0,67782.0,0.07376589]
[1772892498361,0.00031485,67792.0,67783.0,0.01196433]
[1772892498572,0.00031485,67792.0,67785.0,0.01196433]
[1772892499412,0.0001217,67796.0,67785.0,0.01196433]
[1772892499694,0.0001217,67796.0,67789.0,0.07375827]
[1772892499846,0.0001217,67796.0,67790.0,0.01196433]
[1772892500048,0.00188,67800.0,67790.0,0.01196433]
[1772892500245,8.04e-05,67796.0,67790.0,0.01196433]
[1772892500660,8.04e-05,67796.0,67790.0,0.01344433]
[1772892501540,0.0004,67800.0,67790.0,0.01344433]
[1772892501688,0.0004,67800.0,67793.0,0.07375392]
[1772892501888,0.0004,67800.0,67794.0,0.01196433]
[1772892503232,0.00022001,67805.0,67794.0,0.01196433]
[1772892503644,0.00022001,67805.0,67795.0,0.01940494]
[1772892503793,0.07396088,67805.0,67796.0,0.00148]
[1772892504731,0.00022001,67805.0,67796.0,0.00148]
[1772892507854,0.07396111,67805.0,67796.0,0.00148]
[1772892508050,0.02060929,67803.0,67785.0,9.484e-05]
[1772892508227,0.0127426,67800.0,67785.0,9.484e-05]
[1772892508466,0.07396111,67805.0,67785.0,9.484e-05]
[1772892508467,0.02060929,67797.0,67785.0,9.484e-05]
[1772892508617,0.0127426,67794.0,67785.0,9.484e-05]
[1772892510350,0.02060929,67790.0,67779.0,0.0002]
[1772892510547,0.02060929,67790.0,67779.0,0.00031837]
[1772892510548,0.0127426,67787.0,67779.0,0.00031837]
[1772892512307,0.0193626,67787.0,67779.0,0.00031837]
[1772892512524,0.07376154,67786.0,67779.0,0.00031837]
[1772892513706,0.08650414,67786.0,67779.0,0.00031837]
[1772892515107,0.07376154,67786.0,67779.0,0.00031837]
[1772892515645,0.08650357,67787.0,67779.0,0.00031837]
[1772892519951,0.01210784,67786.0,67779.0,0.00031837]
[1772892520147,0.01210784,67786.0,67775.0,0.0004]
[1772892520356,0.0193626,67784.0,67774.0,0.0001764]
[1772892520521,0.01210784,67783.0,67774.0,0.0001764]
[1772892522383,0.07376589,67782.0,67774.0,0.0001764]
[1772892524172,0.00011857,67786.0,67774.0,0.0001764]
[1772892524296,0.00011857,67786.0,67775.0,0.01204881]
[1772892524645,0.00011857,67786.0,67775.0,0.08582129]
[1772892524799,0.01210784,67785.0,67774.0,0.0001764]
[1772892524995,0.0193626,67784.0,67774.0,0.0001764]
[1772892525203,0.01095045,67783.0,67774.0,0.0001764]
[1772892526732,0.07376589,67782.0,67774.0,0.0001764]
[1772892526982,0.08587373,67782.0,67774.0,0.0001764]
[1772892528386,0.0193626,67780.0,67770.0,0.00168]
[1772892528636,0.0193626,67776.0,67764.0,0.0001764]
[1772892528810,0.01210784,67773.0,67764.0,0.0001764]
[1772892529159,0.01210784,67773.0,67763.0,0.0002]
[1772892529483,0.01210784,67772.0,67763.0,0.0002]
[1772892529678,0.01210784,67771.0,67763.0,0.0002]
[1772892530007,0.01210784,67767.0,67756.0,0.00148]
[1772892530216,0.0193626,67767.0,67755.0,0.0001764]
[1772892530371,0.00148,67769.0,67754.0,0.00575]
[1772892530372,0.01210784,67766.0,67754.0,0.00575]
[1772892530885,0.00148,67777.0,67757.0,0.01204881]
[1772892531066,0.00148,67777.0,67760.0,0.02076236]
[1772892531268,0.0001246,67780.0,67764.0,0.02076236]
[1772892531470,0.0001246,67780.0,67768.0,0.01204881]
[1772892531797,0.0001246,67780.0,67771.0,0.01204881]
[1772892531998,0.0001246,67780.0,67773.0,0.01204881]
[1772892532368,0.0001246,67780.0,67772.0,0.00148]
[1772892534335,0.0001246,67780.0,67772.0,0.07525662]
[1772892534840,0.0001246,67780.0,67772.0,0.00148]
[1772892535611,0.0001246,67780.0,67772.0,0.0752565]
[1772892535813,0.0001246,67780.0,67772.0,0.00148]
[1772892537521,0.0001246,67780.0,67772.0,0.07525634]
[1772892538419,0.0001246,67780.0,67772.0,0.08730515]
[1772892539521,0.07536069,67786.0,67773.0,0.02076236]
[1772892539522,0.00011857,67786.0,67773.0,0.02076236]
[1772892539695,0.00011857,67786.0,67774.0,0.01204881]
[1772892540661,0.00159857,67786.0,67774.0,0.01204881]
[1772892541509,0.07536027,67786.0,67774.0,0.01204881]
[1772892541659,0.09542217,67786.0,67771.0,0.00148]
[1772892541861,0.09542217,67786.0,67771.0,0.01360119]
[1772892542078,0.09542217,67786.0,67771.0,0.01212119]
[1772892542278,0.09542217,67786.0,67771.0,0.01360119]
[1772892542785,0.09542217,67786.0,67771.0,0.02360119]
[1772892543877,0.09542217,67786.0,67771.0,0.01148]
[1772892544081,0.09542217,67786.0,67772.0,0.01212119]
[1772892544616,0.09564218,67786.0,67772.0,0.01212119]
[1772892546856,0.09564218,67786.0,67772.0,0.07377656]
[1772892547017,0.00033858,67786.0,67775.0,0.01212119]
[1772892547225,0.00022001,67789.0,67778.0,0.01212119]
[1772892547438,0.00022001,67789.0,67778.0,0.01223976]
[1772892547841,0.00022001,67789.0,67779.0,0.01212119]
[1772892548237,0.07397895,67789.0,67779.0,0.01212119]
[1772892548440,0.07397895,67789.0,67779.0,0.01195112]
[1772892549258,0.07397881,67789.0,67779.0,0.01195112]
[1772892550759,0.01967581,67788.0,67774.0,0.00148]
[1772892550960,0.00189849,67785.0,67771.0,0.01148]
[1772892551162,0.0215743,67782.0,67771.0,0.01148]
[1772892551365,0.0215743,67782.0,67771.0,0.01]
[1772892551773,0.00148,67784.0,67764.0,0.0120996]
[1772892551774,0.04746092,67781.0,67764.0,0.0120996]
[1772892551965,0.00187947,67779.0,67763.0,0.0120996]
[1772892552222,0.00148,67778.0,67763.0,0.0120996]
[1772892553219,0.07377133,67777.0,67763.0,0.0120996]
[1772892553979,0.07377133,67777.0,67764.0,0.0002]
[1772892554584,0.07525133,67778.0,67764.0,0.01289842]
[1772892555389,0.07525133,67778.0,67764.0,0.08668345]
[1772892555585,0.00148,67777.0,67764.0,0.08668345]
[1772892555975,0.00148,67776.0,67764.0,0.08668345]
[1772892556206,0.00148,67776.0,67764.0,0.01289842]
[1772892556493,0.00148,67775.0,67764.0,0.01289842]
[1772892557619,0.0737746,67774.0,67764.0,0.01289842]
[1772892558123,0.0737746,67774.0,67764.0,0.0002]
[1772892558471,0.01967581,67773.0,67764.0,0.0002]
[1772892558676,0.01967581,67773.0,67757.0,0.0002]
[1772892559284,0.01967581,67773.0,67757.0,0.01283011]
[1772892559502,0.07377678,67772.0,67757.0,0.0002]
[1772892559687,0.09345259,67772.0,67757.0,0.0002]
[1772892559889,0.09345259,67772.0,67758.0,0.01263011]
[1772892560096,0.00148,67771.0,67758.0,0.01263011]
[1772892560500,0.00148,67770.0,67758.0,0.01263011]
[1772892560724,0.00148,67771.0,67759.0,0.01259651]
[1772892560890,0.00148,67771.0,67761.0,0.01897276]
[1772892561097,0.07376958,67779.0,67758.0,0.01259651]
[1772892561317,0.02115581,67778.0,67758.0,0.01259651]
[1772892561524,0.07377133,67777.0,67758.0,0.08638779]
[1772892561738,0.01967581,67776.0,67759.0,0.01259651]
[1772892563435,0.07377133,67777.0,67761.0,0.01258207]
[1772892563663,0.07377133,67777.0,67763.0,0.01258207]
[1772892565341,0.01967581,67776.0,67758.0,0.09296457]
[1772892565600,0.01967581,67776.0,67758.0,0.08654113]
[1772892565802,0.07377351,67775.0,67758.0,0.08654113]
[1772892566001,0.07377351,67775.0,67758.0,0.07399181]
[1772892566198,0.07377351,67775.0,67759.0,0.01254932]
[1772892566471,0.00148,67774.0,67761.0,0.01254932]
[1772892566608,0.00148,67774.0,67762.0,0.01251704]
[1772892567635,0.07377569,67773.0,67763.0,0.01251704]
[1772892569312,0.07377569,67773.0,67763.0,0.01234694]
[1772892569503,0.07377569,67773.0,67759.0,0.07379059]
[1772892569858,0.07377569,67773.0,67760.0,0.01240015]
[1772892572112,0.07377569,67773.0,67761.0,0.0124538]
[1772892573255,0.07377569,67773.0,67763.0,0.0002]
[1772892575398,0.07377569,67773.0,67758.0,0.00168]
[1772892575399,0.01251183,67772.0,67740.0,0.07381128]
[1772892575595,0.01251183,67769.0,67744.0,0.01908276]
[1772892575854,0.01251183,67767.0,67746.0,0.01908276]
[1772892576146,0.01251183,67767.0,67740.0,0.07381128]
[1772892576147,0.07378331,67766.0,67749.0,0.07380182]
[1772892576344,0.01251183,67765.0,67749.0,0.07380182]
[1772892577043,0.01263233,67765.0,67749.0,0.09288458]
[1772892577212,0.00148,67764.0,67750.0,0.01908276]
[1772892577748,0.01251183,67764.0,67750.0,0.01908276]
[1772892577895,0.00148,67763.0,67750.0,0.01908276]
[1772892578101,0.00148,67763.0,67751.0,0.03119769]
[1772892578347,0.00148,67762.0,67752.0,0.07379855]
[1772892578916,0.00148,67761.0,67751.0,0.03119769]
[1772892579159,0.08629796,67764.0,67499.0,5.627e-05]
[1772892579160,0.01250858,67759.0,67742.0,0.01211493]
[1772892579457,0.01250858,67759.0,67744.0,0.01211493]
[1772892579751,0.01111035,67759.0,67747.0,0.01908276]
[1772892580130,0.00148,67758.0,67749.0,0.01908276]
[1772892580334,0.07527264,67758.0,67749.0,0.03119769]
[1772892580514,0.07527264,67758.0,67744.0,0.07528638]
[1772892580515,0.01398858,67757.0,67744.0,0.00148]
[1772892580953,0.01398858,67757.0,67742.0,0.07380915]
[1772892580954,0.01398858,67757.0,67742.0,0.07528915]
[1772892581572,0.01398858,67757.0,67739.0,0.01920276]
[1772892581875,0.01250858,67755.0,67739.0,0.00012]
[1772892582107,0.01250858,67755.0,67732.0,0.07382028]
[1772892582108,0.01902242,67745.0,67712.0,0.0026648]
[1772892582261,0.07380836,67743.0,67718.0,0.01211493]
[1772892582424,0.07380836,67743.0,67722.0,0.01211493]
[1772892582630,0.00148,67742.0,67726.0,0.01908276]
[1772892582831,0.07380836,67744.0,67729.0,0.01211493]
[1772892583069,0.00148,67741.0,67730.0,0.01908276]
[1772892583465,0.05207747,67740.0,67730.0,0.01908276]
[1772892583666,0.01363587,67739.0,67723.0,0.00148]
[1772892583902,0.01250858,67738.0,67723.0,0.02056276]
[1772892584412,0.01250858,67738.0,67721.0,0.01211493]
[1772892584413,0.01250858,67732.0,67721.0,0.00148]
[1772892584563,0.01250858,67732.0,67715.0,0.08595163]
[1772892584564,0.14421546,67731.0,67706.0,0.07629695]
[1772892584768,0.01250858,67730.0,67707.0,0.01908276]
[1772892584971,0.00148,67729.0,67711.0,0.01908276]
[1772892585174,0.00148,67730.0,67715.0,0.01908276]
[1772892585377,0.00148,67730.0,67717.0,0.01908276]
[1772892585629,0.00148,67730.0,67719.0,0.01908276]
[1772892586181,0.002,67732.0,67719.0,0.01908276]
[1772892586467,0.002,67732.0,67722.0,0.01908276]
[1772892586835,0.07382144,67731.0,67707.0,0.0738476]
[1772892587040,0.01250858,67730.0,67710.0,0.01908276]
[1772892587340,0.01250858,67730.0,67712.0,0.01908276]
[1772892587341,0.01902242,67730.0,67712.0,0.01908276]
[1772892587541,0.01250858,67729.0,67712.0,0.01908276]
[1772892587742,0.01250858,67729.0,67708.0,0.00148]
[1772892587743,0.01902242,67728.0,67708.0,0.00148]
[1772892587946,0.01398858,67727.0,67709.0,0.01908276]
[1772892588112,0.01398858,67727.0,67708.0,0.00148]
[1772892588313,0.01398858,67727.0,67659.0,0.36809772]
[1772892588314,0.01250858,67719.0,67699.0,0.07385598]
[1772892588517,0.01250858,67708.0,67694.0,0.0002307]
[1772892588723,0.00148,67711.0,67696.0,0.01908276]
[1772892588908,0.14273546,67730.0,67695.0,0.01359493]
[1772892588909,0.01398858,67710.0,67695.0,0.00148]
[1772892589111,0.01398858,67710.0,67694.0,0.07409197]
[1772892589112,0.01250858,67708.0,67694.0,0.05801847]
[1772892589355,0.01250858,67706.0,67693.0,0.07386199]
[1772892589917,0.01250858,67706.0,67694.0,0.07386178]
[1772892590425,0.00012035,67708.0,67695.0,0.01359493]
[1772892590612,0.00012035,67708.0,67697.0,0.02106821]
[1772892591259,0.00012035,67708.0,67698.0,0.00148]
[1772892591430,0.00012035,67708.0,67699.0,0.02106821]
[1772892591652,0.00012035,67708.0,67701.0,0.0002]
[1772892591873,0.00012035,67708.0,67702.0,0.02106821]
[1772892592276,0.00012035,67708.0,67698.0,0.02106821]
[1772892592888,0.01250858,67707.0,67690.0,0.07386576]
[1772892593090,0.00012035,67708.0,67693.0,0.01211493]
[1772892593398,0.00012035,67708.0,67694.0,0.02106821]
[1772892594413,0.06884869,67706.0,67694.0,0.02106821]
[1772892594605,0.01250858,67705.0,67694.0,0.02106821]
[1772892595378,0.01250858,67705.0,67695.0,0.07386069]
[1772892595584,0.01250858,67705.0,67695.0,0.02106821]
[1772892595754,0.00012035,67708.0,67695.0,0.01211493]
[1772892595955,0.00012035,67708.0,67696.0,0.02106821]
[1772892596161,0.07396703,67708.0,67698.0,0.02106821]
[1772892596356,0.00012035,67708.0,67698.0,0.02106821]
[1772892597479,0.01250858,67707.0,67698.0,0.02106821]
[1772892598014,0.01250858,67707.0,67697.0,0.00148]
[1772892598578,0.07384869,67706.0,67697.0,0.00148]
[1772892598777,0.01250858,67705.0,67697.0,0.00148]
[1772892599448,0.07384869,67707.0,67697.0,0.00148]
[1772892599449,0.07384869,67707.0,67697.0,0.02254821]
[1772892600106,0.08635727,67707.0,67697.0,0.02254821]
[1772892600306,0.01250858,67706.0,67697.0,0.02254821]
[1772892600504,0.0738427,67712.0,67699.0,0.02106821]
[1772892600704,0.00148,67713.0,67701.0,0.02106821]
[1772892600905,0.01173107,67716.0,67701.0,0.02106821]
[1772892601111,0.01173107,67713.0,67700.0,0.07385524]
[1772892601531,0.01173107,67713.0,67699.0,0.0742561]
[1772892601847,0.01321107,67713.0,67700.0,0.02254821]
[1772892602342,0.07383545,67719.0,67703.0,0.01250989]
[1772892602501,0.07383545,67719.0,67705.0,0.02141609]
[1772892602502,0.00148,67717.0,67705.0,0.02141609]